Workbook

Sheet Request Form
B1: Department of General Services / Warehouse and Distribution Division
B2: TRANSPORTATION REQUEST | M2: Y
B3: REV:05312232 PLEASE REVIEW the INSTRUCTIONS AND REQUIREMENTS BEFORE COMPLETING THIS FORM | M3: N
B4: MACRO SECURITY MUST BE SET TO MEDIUM and MACRO's ENABLED TO USE THIS FORM
B5: Double Click the Instructions and Requirements Icon to find out how
C6: Please complete all the fields in the form below and click the "Send Request" button
C7: You will get a window asking you to allow this program to access outlook…please answer 'Yes'
B9: If you experience any difficulties with this form, or have questions about scheduling, please contact customer service at 717-525-5812.
B11: Requestor Information:
B13: Agency Name - | F13: Pick Up Date -
B14: Division Name -
B15: Requestor - | D15: Requestor Phone -
B17: Accounting information:
E18: Plant | F18: % Charge | G18: Fund | H18: Cost Ctr | I18: GL Account | J18: Int Ord Y/N | K18: Internal Order Number
B19: Invoice Approval E-Mail - | F19: 1 | J19: N
B25: Shipment Information:
B27: Description of Pallet(s) Contents | D27: Number and Description of Packages | F27: Code | H27: Pallet #'s / LPN's
D28: Number | E28: Size
E29: PALLET
B40: Origin Pick-Up Information:
B42: Shipping Agency / Bureau - | C42: =CONCATENATE($C$13," / ",$C$14) -> / | D42: =CONCATENATE($C$13," / ",$C$14) -> / | E42: / | F42: / | G42: / | H42: /
B43: Contact Name - | E43: Contact Phone -
B45: Building Name -
B46: Street Address -
B47: Addl Address Info -
B48: City - | D48: State - | F48: Zip -
B51: Destination Delivery Information:
B53: Receiving Agency / Bureau - | C53: =CONCATENATE($C$13," / ",$C$14) -> / | D53: =CONCATENATE($C$13," / ",$C$14) -> / | E53: / | F53: / | G53: / | H53: /
B54: Contact Name - | E54: Contact Phone -
B56: Building Name -
B57: Street Address -
B58: Addl Address Info -
B59: City - | D59: State - | F59: Zip -

Sheet Transfer Receipt - BOL (hidden)
B1: THIS RECEIPT IS BASED ON THE INITIAL REQUEST
B2: THE HARD COPY FOUND ON "TRANSFER RECEIPT - PDF" THAT CONTAINS ALL SIGNATURES
F3: SHOULD BE USED TO CALCULATE THE INVOICE
B5: COMMONWEALTH OF PENNSYLVANIA | E5: BILL OF LADING | M5: =ROUND(TODAY()+(NOW()*1000),0) -> 44757262
M6: (FREIGHT BILL #)
B7: RECEIVED FROM (INSERT CONSIGNORS NAME) | L7: NAME OF STATION | N7: DATE
B8: =CONCATENATE('Request Form'!C13," / ",'Request Form'!C14) -> / | N8: ='Request Form'!G13 -> 00:00:00
B9: NAME OF TRANSPORTATION COMPANY | K9: at
B10: =CONCATENATE(Invoice!E8," / ",Invoice!E9) -> Department of General Services / Warehouse and Distribution Division
B12: The Public property described below in apparent good condition (contents and value unknown) to be forwarded
B13: from | C13: =CONCATENATE('Request Form'!C43," of ",'Request Form'!C42:G42,,,", ",'Request Form'!E48,". ",'Request Form'!G48) -> of / , .
B14: to | C14: =CONCATENATE('Request Form'!C54,"of ",'Request Form'!C53:G53) -> of /
B15: by said company and its connections, there to be delivered in like good order and condition.
B17: (INSERT NAME AND ADDRESS OF CONSIGNOR) | H17: (INSERT NAME AND ADDRESS OF CONSIGNEE) | N17: VIA (CARRIER IDENTIFICATION)
B18: ='Request Form'!C42 -> / | H18: ='Request Form'!C53 -> / | N18: DGS/BSSO/W&DD
B19: ='Request Form'!C45 -> 0 | H19: ='Request Form'!C56 -> 0
B20: ='Request Form'!C47 -> 0 | H20: ='Request Form'!C58 -> 0
B21: ='Request Form'!C46 -> 0 | H21: ='Request Form'!C57 -> 0
B23: ='Request Form'!C48 -> 0 | E23: ='Request Form'!E48 -> 0 | F23: ='Request Form'!G48 -> 0 | H23: ='Request Form'!C59 -> 0 | K23: ='Request Form'!E59 -> 0 | L23: ='Request Form'!G59 -> 0
B24: ='Request Form'!C43 -> 0 | E24: ='Request Form'!F43 -> 0 | H24: ='Request Form'!C54 -> 0 | K24: ='Request Form'!F54 -> 0
B25: CONTACT NAME | E25: CONTACT PHONE
B26: MARKS OR NUMBERS | G26: Number and Description of Packages | I26: Code | J26: Contents | N26: Charges
G27: Number | H27: Size
B28: ='Request Form'!H29 -> 0 | G28: ='Request Form'!D29 -> 0 | H28: ='Request Form'!E29 -> PALLET | I28: ='Request Form'!F29 -> 0 | J28: ='Request Form'!B29 -> 0
B29: ='Request Form'!H30 -> 0 | G29: ='Request Form'!D30 -> 0 | H29: ='Request Form'!E30 -> 0 | I29: ='Request Form'!F30 -> 0 | J29: ='Request Form'!B30 -> 0
B30: ='Request Form'!H31 -> 0 | G30: ='Request Form'!D31 -> 0 | H30: ='Request Form'!E31 -> 0 | I30: ='Request Form'!F31 -> 0 | J30: ='Request Form'!B31 -> 0
B31: ='Request Form'!H32 -> 0 | G31: ='Request Form'!D32 -> 0 | H31: ='Request Form'!E32 -> 0 | I31: ='Request Form'!F32 -> 0 | J31: ='Request Form'!B32 -> 0
B32: ='Request Form'!H33 -> 0 | G32: ='Request Form'!D33 -> 0 | H32: ='Request Form'!E33 -> 0 | I32: ='Request Form'!F33 -> 0 | J32: ='Request Form'!B33 -> 0
B33: ='Request Form'!H34 -> 0 | G33: ='Request Form'!D34 -> 0 | H33: ='Request Form'!E34 -> 0 | I33: ='Request Form'!F34 -> 0 | J33: ='Request Form'!B34 -> 0
B34: ='Request Form'!H35 -> 0 | G34: ='Request Form'!D35 -> 0 | H34: ='Request Form'!E35 -> 0 | I34: ='Request Form'!F35 -> 0 | J34: ='Request Form'!B35 -> 0
B35: ='Request Form'!H36 -> 0 | G35: ='Request Form'!D36 -> 0 | H35: ='Request Form'!E36 -> 0 | I35: ='Request Form'!F36 -> 0 | J35: ='Request Form'!B36 -> 0
B36: ='Request Form'!H37 -> 0 | G36: ='Request Form'!D37 -> 0 | H36: ='Request Form'!E37 -> 0 | I36: ='Request Form'!F37 -> 0 | J36: ='Request Form'!B37 -> 0
B37: ='Request Form'!H38 -> 0 | G37: ='Request Form'!D38 -> 0 | H37: ='Request Form'!E38 -> 0 | I37: ='Request Form'!F38 -> 0 | J37: ='Request Form'!B38 -> 0
B38: The fibre boxes used in this shipment conform to the specifications set forth in the box makers certificate thereon and all other requirements of Rule 41 of the consolidated Freight Classification.
O39: Agent
J41: DGS / Warehouse and Distribution Division
J42: (TRANSPORTATION COMPANY)
B43: CONSIGNORS CERTIFICATE OF SHIPMENT (Executed at Point of Origin by Consignor) | I43: CONSIGNEES CERTIFICATE OF RECEIPT (Executed at the Destination by Consignee)
B46: Place | C46: =$B$21 -> 0 | F46: Date | I46: Place | J46: =$H$21 -> 0 | N46: Date
B47: I have this day shipped in accordance with this Bill of Laiding the public proprty enumerated above. | I47: I have this day received from | L47: =B8 -> /
I48: the public property enumerated above in apparent good order and condition except as noted above.
G52: (CONSIGNOR) | O52: (CONSIGNEE)

Sheet Transfer Receipt - PDF (hidden)

Sheet Trip Cost (hidden)
A1: Date | B1: Agency | C1: Address | D1: Contact | E1: Phone | F1: BOL | G1: Invoice # | H1: Pallets | J1: # Emp | K1: Veh # | M1: Miles | N1: Fuel Cost Alloc | O1: Maint Alloc | P1: Veh cost per trip | R1: Mi/Hr | S1: Calc Hrs/Trip | T1: Min/Trip | U1: Rate Per Pallet | V1: Pallet Surcharge | W1: Markup | Y1: Enter Hrs/Trip | Z1: Unload time (hrs) | AA1: Labor Cost per hour fully burdened | AB1: Lobor cost per trip | AD1: Sub Cost Per Trip cost per trip | AF1: Total Cost Per Trip
A2: ='Request Form'!G13 -> 00:00:00 | B2: ='Request Form'!C13 -> 0 | C2: ='Request Form'!C46 -> 0 | D2: ='Request Form'!C15 -> 0 | E2: ='Request Form'!G15 -> 0 | F2: ='Transfer Receipt - BOL'!M5 -> 44757262 | G2: =Invoice!K6 -> 0 | H2: =SUM('Transfer Receipt - BOL'!G28:'Transfer Receipt - BOL'!G37) -> 0 | J2: 1 | K2: 3 | M2: 0 | N2: =IF(K2>0,SUMIF('Vehicle Cost Table'!$B:$B,K2,'Vehicle Cost Table'!$L:$L),0) -> 1.027613412 | O2: =SUMIF('Vehicle Cost Table'!$B:$B,K2,'Vehicle Cost Table'!$M:$M) -> 0.1849753452 | P2: =IF(M2>0,IF(K2>0,(N2+O2)*M2,"Veh # Req"),"") ->  | R2: =IF(M2>0,IF(M2>0,VLOOKUP(M2,'Miles-Hrs Conversion Values'!B:F,2),0),"") ->  | S2: =IF(M2>0,IF(M2>0,VLOOKUP(M2,'Miles-Hrs Conversion Values'!B:F,3),0),"") ->  | T2: =IF(M2>0,VLOOKUP(M2,'Miles-Hrs Conversion Values'!B:F,4),0) -> 0 | U2: 15 | V2: =H2*U2 -> 0 | W2: 0.2 | Y2: =IF(S2>0,S2,0) ->  | AA2: 22.62 | AB2: =IF(Y2>0,IF(Y2>8,((((Y2)-8)*J2)*(AA2*1.5))+((8*J2)*AA2),((Y2)*J2)*AA2),"") ->  | AD2: =IF(AB2>0,P2+AB2+V2,"") ->  | AF2: =AD2+(AD2*W2) -> 
C5: Verify Number of Actual Pallets Change here if necessary | H5: Enter Mapquest Miles | Y5: Check This Against MapQuest
H6: MAPQUEST | Y6: and OVERTYPE If needed
H8: BEFORE Transfer is Completed
C9: Address | D9: Miles | F9: Hrs/Trip | H9: 1- | I9: Click [Save] … Click [Close]
C10: 400 North Street | D10: 9 | F10: 0.43 | H10: 2- | I10: Don’t Forget to Click [Save and Close] on the Appointment
C11: Kline Plaza | D11: 10 | F11: 0.48
C12: 18th and Herr | D12: 11 | F12: 0.35 | H12: AFTER the Transfer is Complete and Form is signed
C13: 333 Market Street | D13: 12 | F13: 0.42 | H13: 1- | I13: Put the signed form in this workbook
C14: 2221 Forster Street | D14: 13 | F14: 0.38 | I14: a. | J14: Scan the Form to PDF and send to yourself
C15: ROC | D15: 10 | F15: 0.47 | I15: b. | J15: Open the PDF
I16: c. | J16: Click [edit] > [copy to file]
I17: d. | J17: Close the PDF
I18: e. | J18: Click the [Transfer Receipt - PDF] tab and Click [Paste]
H19: 2- | I19: Verify Pallets and Cartons from Transfer receipt (change if needed)
H20: 3- | I20: Enter Mapquest Miles and Hours (hours+{[Minutes]/60})
H21: 4- | I21: Check the cost values to make sure they look OK
H22: 5- | I22: Click Copy To Log Button
H23: 6- | I23: WAIT for [Copy Record To Log] button is grey
H24: 7- | I24: Click [Send Invoice To Resource Account]
H25: 8- | I25: Click [Save] … Click [Close]
H26: 9- | I26: Don’t Forget to Click [Save and Close] on the Appointment

Sheet Invoice (hidden)
B1: PLEASE PRINT THIS INVOICE AND SIGN INDICATING APPROVAL
B2: SCAN THE SIGNED COPY INTO A PDF FILE
D3: AND EMAIL TO : | F3: GS, WhsDist
K5: INVOICE NO.
B6: GENERAL INVOICE
B7: PAYOR (NAME AND ADDRESS) | E7: PAYEE (NAME AND ADDRESS) | K7: DATE
B8: =IF('Request Form'!$C$13="","",'Request Form'!$C$13) ->  | E8: Department of General Services
B9: =IF('Request Form'!$C$14="","",'Request Form'!$C$14) ->  | E9: Warehouse and Distribution Division | K9: ORDER NO.
B10: =IF('Request Form'!$C$45="","",'Request Form'!$C$45) ->  | E10: 905 Elmerton Avenue
B11: =IF('Request Form'!$C$46="","",'Request Form'!$C$46) ->  | E11: Harrisburg, PA 17110 | K11: VT OR ADVANCEMENT ACCOUNT NO.
B12: =IF('Request Form'!$C$47="","",'Request Form'!$C$47) -> 
B13: =IF('Request Form'!$C$48="","",'Request Form'!$C$48) ->  | C13: ='Request Form'!$E$48 -> 0 | D13: ='Request Form'!$G$48 -> 0 | E13: VENDOR NO. | K13: TERMS
B14: kclemence@pa.gov | C14: INVOICE E-MAIL | F14: 691147-001
B15: DATE OF TRANSACTION | D15: ITEM AND DESCRIPTION | I15: QUANTITY | J15: UNIT | K15: PALLETS | L15: CARTONS | M15: AMOUNT
B17: ='Request Form'!$G$13 -> 00:00:00 | C17: Transportation Services rendered as itemized in | I17: 1 | J17: Ea. | K17: ='Trip Cost'!H2 -> 0 | M17: ='Trip Cost'!$AF$2 -> 
C18: Bill of Lading # | E18: ='Transfer Receipt - BOL'!M5 -> 44757262
C27: % | D27: FUND | E27: COST CENTER | F27: GL | G27: Int Ord Y/N | I27: Internal Order Number
B28: EXPENDITURE CODING | C28: ='Request Form'!F19 -> 1 | D28: ='Request Form'!$G19 -> 0 | E28: ='Request Form'!$H19 -> 0 | F28: ='Request Form'!$I19 -> 0 | G28: ='Request Form'!J19 -> N | I28: ='Request Form'!K19 -> 0
C29: ='Request Form'!F20 -> 0 | D29: ='Request Form'!$G20 -> 0 | E29: ='Request Form'!$H20 -> 0 | F29: ='Request Form'!$I20 -> 0 | G29: ='Request Form'!K20 -> 0 | I29: ='Request Form'!K20 -> 0
C30: ='Request Form'!F21 -> 0 | D30: ='Request Form'!$G21 -> 0 | E30: ='Request Form'!$H21 -> 0 | F30: ='Request Form'!$I21 -> 0 | G30: ='Request Form'!K21 -> 0 | I30: ='Request Form'!K21 -> 0
C31: ='Request Form'!F22 -> 0 | D31: ='Request Form'!$G22 -> 0 | E31: ='Request Form'!$H22 -> 0 | F31: ='Request Form'!$I22 -> 0 | G31: ='Request Form'!K22 -> 0 | I31: ='Request Form'!K22 -> 0
C32: ='Request Form'!F23 -> 0 | D32: ='Request Form'!$G23 -> 0 | E32: ='Request Form'!$H23 -> 0 | F32: ='Request Form'!$I23 -> 0 | G32: ='Request Form'!K23 -> 0 | I32: ='Request Form'!K23 -> 0
B33: REVENUE CODING | C33: 1 | D33: 5000900001 | E33: 1577330731 | F33: 4201508
D34: Secondary Cost Element = | F34: 9115005 | I34: TOTAL | M34: =SUM(M16:M26) -> 
B37: I CERTIFY THAT THE ABOVE EXPENSES, SERVICES, MATERIALS OR | G37: ACKNOWLEDGMENT OF THE FOLLOWING IS REQUIRED IF PAYMENT IS
B38: PRODUCTS WERE ACTUALLY INCURRED, RENDERED OR FURNISHED | G38: MADE FROM ADVANCED REQUISITION MONEYS.
B39: FOR THE USE OF THE COMMONWEALTH OF PENNSYLVANIA, AND THAT | G39: I HEREBY ACKNOWLEDGE RECEIPT IN FULL AS SET FORTH IN THIS
B40: THE ABOVE PRICES CHARGED WERE FAIR AND REASONABLE. | G40: INVOICE IN THE AMOUNT OF $______________________
B42: ____________________________________________________________________ | G42: _____________________________________________________________
B43: SIGNATURE | G43: SIGNATURE

Sheet Approved Invoice PDF (hidden)

Sheet Vehicle Cost Table (hidden)
B2: VEH # | C2: Whse | D2: ORG | E2: Year | F2: Make | G2: Model | H2: Equip No | I2: VIN# | J2: Title # | K2: License | L2: ='[1]Vehicle Cost Table'!I2 -> Maint Alloc (2007 Actual) | M2: ='[1]Vehicle Cost Table'!H2 -> Fuel Cost Alloc (Cost/Mi) | O2: 2016-08-10
B3: 1 | C3: Elmerton | D3: 7330 | E3: 2002 | F3: FORD / Blue | G3: WINDSTAR CARGO | H3: 057-00-5281 | I3: 2FTZA54452BA75132 | J3: 57009884402 | K3: PA91276 | L3: 0.3075198125 | M3: 0.1497853955
B4: 2 | C4: Elmerton | D4: 7330 | E4: 1996 | F4: Ford / Green | G4: F700 | H4: 057-03-3961 | I4: 1FDNF70J1TVA18354 | J4: 49255459201 | K4: PA75957 | L4: 1.090915399 | M4: 0.4965299556
B5: 3 | C5: Elmerton | D5: 7330 | E5: 2015 | F5: Hino | G5: 268A-16 Box Truck | H5: 085-03-0015 | I5: 5PVNJ8JT8G4S56934 | J5: 75719046800 | K5: PA9861A | L5: 1.027613412 | M5: 0.1849753452
B6: 4 | C6: Elmerton | D6: 7330 | E6: 2003 | F6: GMC / Blue | G6: SAVANA 3500 | H6: 059-01-1116 | I6: 1GTHG35U531140099 | J6: 58391119101 | K6: PA91223 | L6: 0.2030663016 | M6: 0.1815588209
B7: 5 | C7: Elmerton | D7: 7330 | E7: 1995 | F7: Mack | G7: CH613 | H7: 068-04-0127 | I7: 1M1AA13YOSW050762 | J7: 48118694001 | K7: PA74576 | L7: 1.768788559 | M7: 0.6908155075
B8: 6 | C8: Elmerton | D8: 7330 | E8: 2002 | F8: Sterling | G8: M8500 Acterra Truck | H8: 077-04-0006 | I8: 2FZAANCSX2AK17965 | J8: 57125590801 | K8: PA86972 | L8: 0.3477171171 | M8: 0.3462990257
B9: 7 | C9: Federal | D9: 7320 | E9: 2005 | F9: Dodge | G9: Caravan | H9: 006-05-6164 | I9: 1D4GP24R35B320006 | J9: 72253573300 | K9: 35391PA | L9: 0.1184933447 | M9: 0.1040750392
B10: 8 | C10: Federal | D10: 7320 | E10: 2001 | F10: International | G10: box truck | H10: 065-02-2663 | I10: 1HTSCABM21H366697 | J10: 70891113600 | K10: PA4041A | L10: 0.1153917995 | M10: 0.2971577449
B11: 9 | C11: Federal | D11: 7320 | E11: 1995 | F11: Mack | G11: CH613 | H11: 068-04-0128 | I11: 1M1AA13Y2SW050763 | J11: 48118694001 | K11: PA74577 | L11: 0.2834468504 | M11: 0.9556751902
B12: 10 | C12: Federal | D12: 7320 | E12: 2010 | F12: Mack | G12: Tractor | H12: 068-04-0161 | I12: 1M1AW07Y6ANO11684 | J12: 67669430000 | K12: PA98622 | L12: 0.187219831 | M12: 0.5226211361
B13: 11 | C13: Forster | D13: 7330 | E13: 2001 | F13: Chevy | G13: Box Truck | H13: 053-02-6868 | I13: 1GBG6HIESIJ511641 | J13: 56647192101 | K13: PA86833 | L13: 0.8029584096 | M13: 0.4611877872
B14: 12 | C14: Forster | D14: 7330 | E14: 2015 | F14: Hino | G14: 268A-16 Box Truck | H14: 085-03-0016 | I14: 5PVNJ8JT1G4S56936 | J14: 75719047000 | K14: PA9862A | L14: 1.028047091 | M14: 0.1910734072
B15: 13 | C15: Forster | D15: 7330 | E15: 2003 | F15: Ford Blue | G15: E350 passenger van | H15: 057-10-6328 | I15: 1FBSS31L93HBO5319 | J15: 68677769601 | K15: 31520PA | L15: 0.1505444234 | M15: 0.2147865438
B16: 14 | C16: Recycle | D16: 7340 | E16: 2004 | F16: Sterling | G16: box truck | H16: 077-04-0010 | I16: 2FZACHC574AM51673 | J16: 59488583301 | K16: PA88954 | L16: 0.2043698477 | M16: 0.2604659017
B17: 15 | C17: Recycle | D17: 7340 | E17: 2000 | F17: Sterling | G17: Compactor | H17: 086-04-0009 | I17: 2FZHAJBB4YAG51349 | J17: 54606980001 | K17: PA86805 | L17: 0.8878052486 | M17: 0.5814771138
B18: 16 | C18: Recycle | D18: 7340 | E18: 2007 | F18: Sterling | G18: Compactor | H18: 077-04-0026 | I18: 2FZHCHDJ17AX82578 | J18: 64761263201 | K18: PA96981 | L18: 0.7157427366 | M18: 0.6549545627
B19: 17 | C19: State | D19: 7310 | E19: 2003 | F19: Daimler | G19: Sterling | H19: 077-04-0007 | I19: LEASED | J19: 58175567001 | K19: 87654PA | L19: 0.4221756771 | M19: 0.3440425021
B20: 18 | C20: State | D20: 7310 | E20: 2013 | F20: Ford | G20: E-350 | H20: 057-01-6572 | I20: 1FTSE2EL7DDA10568 | J20: 71354356801 | K20: PA5849A | L20: 0.02076038019 | M20: 0.1312467822
B21: 19
B22: 20
E24: CY2007 Actual
E25: Cost | F25: Location | G25: Miles | M25: CPM
E26: 3353.58 | F26: Elmerton | G26: 20362 | M26: 0.1646979668
E27: 6630.74 | F27: Bobali | G27: 11230 | M27: 0.5904487979
E28: 1644.02 | F28: Forster | G28: 13604 | M28: 0.1208482799
D29: Total | E29: 11628.34 | G29: 45196 | M29: 0.257286928

Sheet Miles-Hrs Conversion Values (hidden)
B1: Miles | C1: MPH | D1: Hrs | E1: Min
B2: 1 | C2: 4 | D2: 0.25 | E2: 15 | G2: 0.3265986123
B3: 2 | C3: 23.93918561 | D3: 0.08354503083 | E3: 5.01270185 | G3: 0.338073171
B4: 3 | C4: 24.27725878 | D4: 0.1235724357 | E4: 7.414346143 | G4: 0.3495477297
B5: 4 | C5: 24.62680651 | D5: 0.1624246326 | E5: 9.745477957 | G5: 0.3610222884
B6: 5 | C6: 24.9878288 | D6: 0.200097417 | E6: 12.00584502 | G6: 0.372496847
B7: 6 | C7: 25.36032565 | D7: 0.2365900219 | E7: 14.19540131 | G7: 0.3839714057
B8: 7 | C8: 25.74429705 | D8: 0.27190488 | E8: 16.3142928 | G8: 0.3954459644
B9: 8 | C9: 26.13974302 | D9: 0.3060473852 | E9: 18.36284311 | G9: 0.406920523
B10: 9 | C10: 26.54666354 | D10: 0.3390256552 | E10: 20.34153931 | G10: 0.4183950817
B11: 10 | C11: 26.96505862 | D11: 0.3708502971 | E11: 22.25101782 | G11: 0.4298696404
B12: 11 | C12: 27.39492826 | D12: 0.401534178 | E12: 24.09205068 | G12: 0.441344199
B13: 12 | C13: 27.83627246 | D13: 0.4310922023 | E13: 25.86553214 | G13: 0.4528187577
B14: 13 | C14: 28.28909122 | D14: 0.4595410966 | E14: 27.57246579 | G14: 0.4642933164
B15: 14 | C15: 28.75338454 | D15: 0.4868992025 | E15: 29.21395215 | G15: 0.4757678751
B16: 15 | C16: 29.22915241 | D16: 0.5131862802 | E16: 30.79117681 | G16: 0.4872424337
B17: 16 | C17: 29.71639484 | D17: 0.538423321 | E17: 32.30539926 | G17: 0.4987169924
B18: 17 | C18: 30.21511184 | D18: 0.5626323706 | E18: 33.75794224 | G18: 0.5101915511
B19: 18 | C19: 30.72530339 | D19: 0.5858363634 | E19: 35.1501818 | G19: 0.5216661097
B20: 19 | C20: 31.2469695 | D20: 0.6080589672 | E20: 36.48353803 | G20: 0.5331406684
B21: 20 | C21: 31.78011017 | D21: 0.629324439 | E21: 37.75946634 | G21: 0.5446152271
B22: 21 | C22: 32.32472539 | D22: 0.6496574911 | E22: 38.97944947 | G22: 0.5560897858
B23: 22 | C23: 32.88081518 | D23: 0.6690831684 | E23: 40.14499011 | G23: 0.5675643444
B24: 23 | C24: 33.44837952 | D24: 0.6876267349 | E24: 41.2576041 | G24: 0.5790389031
B25: 24 | C25: 34.02741843 | D25: 0.7053135709 | E25: 42.31881426 | G25: 0.5905134618
B26: 25 | C26: 34.61793189 | D26: 0.7221690793 | E26: 43.33014476 | G26: 0.6019880204
B27: 26 | C27: 35.21991991 | D27: 0.7382186009 | E27: 44.29311606 | G27: 0.6134625791
B28: 27 | C28: 35.83338249 | D28: 0.7534873385 | E28: 45.20924031 | G28: 0.6249371378
B29: 28 | C29: 36.45831963 | D29: 0.7680002888 | E29: 46.08001733 | G29: 0.6364116965
B30: 29 | C30: 37.09473132 | D30: 0.7817821822 | E30: 46.90693093 | G30: 0.6478862551
B31: 30 | C31: 37.74261758 | D31: 0.7948574298 | E31: 47.69144579 | G31: 0.6593608138
B32: 31 | C32: 38.40197839 | D32: 0.8072500767 | E32: 48.4350046 | G32: 0.6708353725
B33: 32 | C33: 39.07281376 | D33: 0.8189837618 | E33: 49.13902571 | G33: 0.6823099311
B34: 33 | C34: 39.75512369 | D34: 0.8300816834 | E34: 49.804901 | G34: 0.6937844898
B35: 34 | C35: 40.44890818 | D35: 0.8405665697 | E35: 50.43399418 | G35: 0.7052590485
B36: 35 | C36: 41.15416723 | D36: 0.8504606545 | E36: 51.02763927 | G36: 0.7167336071
B37: 36 | C37: 41.87090084 | D37: 0.8597856573 | E37: 51.58713944 | G37: 0.7282081658
B38: 37 | C38: 42.59910901 | D38: 0.8685627672 | E38: 52.11376603 | G38: 0.7396827245
B39: 38 | C39: 43.33879173 | D39: 0.876812631 | E39: 52.60875786 | G39: 0.7511572832
B40: 39 | C40: 44.08994901 | D40: 0.8845553436 | E40: 53.07332062 | G40: 0.7626318418
B41: 40 | C41: 44.85258085 | D41: 0.891810443 | E41: 53.50862658 | G41: 0.7741064005
B42: 41 | C42: 45.62668726 | D42: 0.898596906 | E42: 53.91581436 | G42: 0.7855809592
B43: 42 | C43: 46.41226821 | D43: 0.9049331484 | E43: 54.2959889 | G43: 0.7970555178
B44: 43 | C44: 47.20932373 | D44: 0.9108370254 | E44: 54.65022152 | G44: 0.8085300765
B45: 44 | C45: 48.01785381 | D45: 0.9163258353 | E45: 54.97955012 | G45: 0.8200046352
B46: 45 | C46: 48.83785844 | D46: 0.921416324 | E46: 55.28497944 | G46: 0.8314791939
B47: 46 | C47: 49.66933764 | D47: 0.9261246916 | E47: 55.56748149 | G47: 0.8429537525
B48: 47 | C48: 50.51229139 | D48: 0.9304665994 | E48: 55.82799597 | G48: 0.8544283112
B49: 48 | C49: 51.3667197 | D49: 0.9344571793 | E49: 56.06743076 | G49: 0.8659028699
B50: 49 | C50: 52.23262257 | D50: 0.9381110423 | E50: 56.28666254 | G50: 0.8773774285
B51: 50 | C51: 53.11 | D51: 0.9414422896 | E51: 56.48653738 | G51: 0.8888519872
B52: 51 | C52: 53.5 | D52: 0.953271028 | E52: 57.19626168
B53: 52 | C53: 54 | D53: 0.9811320755 | E53: 58.86792453
B54: 53 | C54: 54 | D54: 1 | E54: 60
B55: 54 | C55: 54 | D55: 1.018867925 | E55: 61.13207547
B56: 55 | C56: 54 | D56: 1.102075337 | E56: 66.1245202
B57: 56 | C57: 54 | D57: 1.056603774 | E57: 63.39622642
B58: 57 | C58: 54 | D58: 1.075471698 | E58: 64.52830189
B59: 58 | C59: 54 | D59: 1.094339623 | E59: 65.66037736
B60: 59 | C60: 54 | D60: 1.113207547 | E60: 66.79245283
B61: 60 | C61: 54 | D61: 1.132075472 | E61: 67.9245283
B62: 61 | C62: 54.5 | D62: =B62/C62 -> 1.119266055 | E62: =D62*60 -> 67.1559633
B63: 62 | C63: 54.5 | D63: 1.137614679 | E63: 68.25688073
B64: 63 | C64: 54.5 | D64: 1.155963303 | E64: 69.35779817
B65: 64 | C65: 54.5 | D65: 1.174311927 | E65: 70.4587156
B66: 65 | C66: 54.5 | D66: 1.19266055 | E66: 71.55963303
B67: 66 | C67: 54.5 | D67: 1.211009174 | E67: 72.66055046
B68: 67 | C68: 54.5 | D68: 1.229357798 | E68: 73.76146789
B69: 68 | C69: 54.5 | D69: 1.247706422 | E69: 74.86238532
B70: 69 | C70: 54.5 | D70: 1.266055046 | E70: 75.96330275
B71: 70 | C71: 55 | D71: 1.272727273 | E71: 76.36363636
B72: 71 | C72: 55 | D72: 1.290909091 | E72: 77.45454545
B73: 72 | C73: 55 | D73: 1.309090909 | E73: 78.54545455
B74: 73 | C74: 55 | D74: 1.327272727 | E74: 79.63636364
B75: 74 | C75: 55 | D75: 1.345454545 | E75: 80.72727273
B76: 75 | C76: 55 | D76: 1.363636364 | E76: 81.81818182
B77: 76 | C77: 55 | D77: 1.381818182 | E77: 82.90909091
B78: 77 | C78: 55 | D78: 1.4 | E78: 84
B79: 78 | C79: 55 | D79: 1.418181818 | E79: 85.09090909
B80: 79 | C80: 55 | D80: 1.436363636 | E80: 86.18181818
B81: 80 | C81: 55.5 | D81: 1.441441441 | E81: 86.48648649
B82: 81 | C82: 55.5 | D82: 1.459459459 | E82: 87.56756757
B83: 82 | C83: 55.5 | D83: 1.477477477 | E83: 88.64864865
B84: 83 | C84: 55.5 | D84: 1.495495495 | E84: 89.72972973
B85: 84 | C85: 55.5 | D85: 1.513513514 | E85: 90.81081081
B86: 85 | C86: 55.5 | D86: 1.531531532 | E86: 91.89189189
B87: 86 | C87: 55.5 | D87: 1.54954955 | E87: 92.97297297
B88: 87 | C88: 55.5 | D88: 1.567567568 | E88: 94.05405405
B89: 88 | C89: 55.5 | D89: 1.585585586 | E89: 95.13513514
B90: 89 | C90: 55.5 | D90: 1.603603604 | E90: 96.21621622
B91: 90 | C91: 56 | D91: 1.607142857 | E91: 96.42857143
B92: 91 | C92: 56 | D92: 1.625 | E92: 97.5
B93: 92 | C93: 56 | D93: 1.642857143 | E93: 98.57142857
B94: 93 | C94: 56 | D94: =B94/C94 -> 1.660714286 | E94: =D94*60 -> 99.64285714
B95: 94 | C95: 56 | D95: 1.678571429 | E95: 100.7142857
B96: 95 | C96: 56 | D96: 1.696428571 | E96: 101.7857143
B97: 96 | C97: 56 | D97: 1.714285714 | E97: 102.8571429
B98: 97 | C98: 56 | D98: 1.732142857 | E98: 103.9285714
B99: 98 | C99: 56 | D99: 1.75 | E99: 105
B100: 99 | C100: 56 | D100: 1.767857143 | E100: 106.0714286
B101: 100 | C101: 56.5 | D101: 1.769911504 | E101: 106.1946903
B102: 101 | C102: 56.5 | D102: 1.787610619 | E102: 107.2566372
B103: 102 | C103: 56.5 | D103: 1.805309735 | E103: 108.3185841
B104: 103 | C104: 56.5 | D104: 1.82300885 | E104: 109.380531
B105: 104 | C105: 56.5 | D105: 1.840707965 | E105: 110.4424779
B106: 105 | C106: 56.5 | D106: 1.85840708 | E106: 111.5044248
B107: 106 | C107: 56.5 | D107: 1.876106195 | E107: 112.5663717
B108: 107 | C108: 56.5 | D108: 1.89380531 | E108: 113.6283186
B109: 108 | C109: 56.5 | D109: 1.911504425 | E109: 114.6902655
B110: 109 | C110: 56.5 | D110: 1.92920354 | E110: 115.7522124
B111: 110 | C111: 57 | D111: 1.929824561 | E111: 115.7894737
B112: 111 | C112: 57 | D112: 1.947368421 | E112: 116.8421053
B113: 112 | C113: 57 | D113: 1.964912281 | E113: 117.8947368
B114: 113 | C114: 57 | D114: 1.98245614 | E114: 118.9473684
B115: 114 | C115: 57 | D115: 2 | E115: 120
B116: 115 | C116: 57 | D116: 2.01754386 | E116: 121.0526316
B117: 116 | C117: 57 | D117: 2.035087719 | E117: 122.1052632
B118: 117 | C118: 57 | D118: 2.052631579 | E118: 123.1578947
B119: 118 | C119: 57 | D119: 2.070175439 | E119: 124.2105263
B120: 119 | C120: 57 | D120: 2.087719298 | E120: 125.2631579
B121: 120 | C121: 57.5 | D121: 2.086956522 | E121: 125.2173913
B122: 121 | C122: 57.5 | D122: 2.104347826 | E122: 126.2608696
B123: 122 | C123: 57.5 | D123: 2.12173913 | E123: 127.3043478
B124: 123 | C124: 57.5 | D124: 2.139130435 | E124: 128.3478261
B125: 124 | C125: 57.5 | D125: 2.156521739 | E125: 129.3913043
B126: 125 | C126: 57.5 | D126: =B126/C126 -> 2.173913043 | E126: =D126*60 -> 130.4347826
B127: 126 | C127: 57.5 | D127: 2.191304348 | E127: 131.4782609
B128: 127 | C128: 57.5 | D128: 2.208695652 | E128: 132.5217391
B129: 128 | C129: 57.5 | D129: 2.226086957 | E129: 133.5652174
B130: 129 | C130: 57.5 | D130: 2.243478261 | E130: 134.6086957
B131: 130 | C131: 58 | D131: 2.24137931 | E131: 134.4827586
B132: 131 | C132: 58 | D132: 2.25862069 | E132: 135.5172414
B133: 132 | C133: 58 | D133: 2.275862069 | E133: 136.5517241
B134: 133 | C134: 58 | D134: 2.293103448 | E134: 137.5862069
B135: 134 | C135: 58 | D135: 2.310344828 | E135: 138.6206897
B136: 135 | C136: 58 | D136: 2.327586207 | E136: 139.6551724
B137: 136 | C137: 58 | D137: 2.344827586 | E137: 140.6896552
B138: 137 | C138: 58 | D138: 2.362068966 | E138: 141.7241379
B139: 138 | C139: 58 | D139: 2.379310345 | E139: 142.7586207
B140: 139 | C140: 58 | D140: 2.396551724 | E140: 143.7931034
B141: 140 | C141: 58 | D141: 2.413793103 | E141: 144.8275862
B142: 141 | C142: 58 | D142: 2.431034483 | E142: 145.862069
B143: 142 | C143: 58 | D143: 2.448275862 | E143: 146.8965517
B144: 143 | C144: 58 | D144: 2.465517241 | E144: 147.9310345
B145: 144 | C145: 58 | D145: 2.482758621 | E145: 148.9655172
B146: 145 | C146: 58 | D146: 2.5 | E146: 150
B147: 146 | C147: 58 | D147: 2.517241379 | E147: 151.0344828
B148: 147 | C148: 58 | D148: 2.534482759 | E148: 152.0689655
B149: 148 | C149: 58 | D149: 2.551724138 | E149: 153.1034483
B150: 149 | C150: 58 | D150: 2.568965517 | E150: 154.137931
B151: 150 | C151: 58 | D151: 2.586206897 | E151: 155.1724138
B152: 151 | C152: 58 | D152: 2.603448276 | E152: 156.2068966
B153: 152 | C153: 58 | D153: 2.620689655 | E153: 157.2413793
B154: 153 | C154: 58 | D154: 2.637931034 | E154: 158.2758621
B155: 154 | C155: 58 | D155: 2.655172414 | E155: 159.3103448
B156: 155 | C156: 58 | D156: 2.672413793 | E156: 160.3448276
B157: 156 | C157: 58 | D157: 2.689655172 | E157: 161.3793103
B158: 157 | C158: 58 | D158: =B158/C158 -> 2.706896552 | E158: =D158*60 -> 162.4137931
B159: 158 | C159: 58 | D159: 2.724137931 | E159: 163.4482759
B160: 159 | C160: 58 | D160: 2.74137931 | E160: 164.4827586
B161: 160 | C161: 58 | D161: 2.75862069 | E161: 165.5172414
B162: 161 | C162: 58 | D162: 2.775862069 | E162: 166.5517241
B163: 162 | C163: 58 | D163: 2.793103448 | E163: 167.5862069
B164: 163 | C164: 58 | D164: 2.810344828 | E164: 168.6206897
B165: 164 | C165: 58 | D165: 2.827586207 | E165: 169.6551724
B166: 165 | C166: 58 | D166: 2.844827586 | E166: 170.6896552
B167: 166 | C167: 58 | D167: 2.862068966 | E167: 171.7241379
B168: 167 | C168: 58 | D168: 2.879310345 | E168: 172.7586207
B169: 168 | C169: 58 | D169: 2.896551724 | E169: 173.7931034
B170: 169 | C170: 58 | D170: 2.913793103 | E170: 174.8275862
B171: 170 | C171: 58 | D171: 2.931034483 | E171: 175.862069
B172: 171 | C172: 58 | D172: 2.948275862 | E172: 176.8965517
B173: 172 | C173: 58 | D173: 2.965517241 | E173: 177.9310345
B174: 173 | C174: 58 | D174: 2.982758621 | E174: 178.9655172
B175: 174 | C175: 58 | D175: 3 | E175: 180
B176: 175 | C176: 58 | D176: 3.017241379 | E176: 181.0344828
B177: 176 | C177: 58 | D177: 3.034482759 | E177: 182.0689655
B178: 177 | C178: 58 | D178: 3.051724138 | E178: 183.1034483
B179: 178 | C179: 58 | D179: 3.068965517 | E179: 184.137931
B180: 179 | C180: 58 | D180: 3.086206897 | E180: 185.1724138
B181: 180 | C181: 58 | D181: 3.103448276 | E181: 186.2068966
B182: 181 | C182: 58 | D182: 3.120689655 | E182: 187.2413793
B183: 182 | C183: 58 | D183: 3.137931034 | E183: 188.2758621
B184: 183 | C184: 58 | D184: 3.155172414 | E184: 189.3103448
B185: 184 | C185: 58 | D185: 3.172413793 | E185: 190.3448276
B186: 185 | C186: 58 | D186: 3.189655172 | E186: 191.3793103
B187: 186 | C187: 58 | D187: 3.206896552 | E187: 192.4137931
B188: 187 | C188: 58 | D188: 3.224137931 | E188: 193.4482759
B189: 188 | C189: 58 | D189: 3.24137931 | E189: 194.4827586
B190: 189 | C190: 58 | D190: =B190/C190 -> 3.25862069 | E190: =D190*60 -> 195.5172414
B191: 190 | C191: 58 | D191: 3.275862069 | E191: 196.5517241
B192: 191 | C192: 58 | D192: 3.293103448 | E192: 197.5862069
B193: 192 | C193: 58 | D193: 3.310344828 | E193: 198.6206897
B194: 193 | C194: 58 | D194: 3.327586207 | E194: 199.6551724
B195: 194 | C195: 58 | D195: 3.344827586 | E195: 200.6896552
B196: 195 | C196: 58 | D196: 3.362068966 | E196: 201.7241379
B197: 196 | C197: 58 | D197: 3.379310345 | E197: 202.7586207
B198: 197 | C198: 58 | D198: 3.396551724 | E198: 203.7931034
B199: 198 | C199: 58 | D199: 3.413793103 | E199: 204.8275862
B200: 199 | C200: 58 | D200: 3.431034483 | E200: 205.862069
... 32 more rows
